Cogmind - Beta 10.2 *** ADVENTURER MODE // 2020.12.10 @ 15:33:35 Player: Ms Vella Result: Destroyed by Striker with Plasma Lance Performance ------------- Evolutions (5) 2500 Regions Visited (21) 4200 Robots Destroyed (125) 625 Value Destroyed (5227) 5227 Prototype IDs (39) 780 Alien Tech Used (0) 0 Bonus (7533) 7533 TOTAL SCORE: 20865 Bonus ------- High Alert Combat Kills 46 Follower Combat Kills 2026 Met Data Miner 300 Met Imprinter 300 Was Imprinted 300 Met Warlord at Base 500 MAIN.C Attacked Warlord 500 Warlord Defense Kill 4050 Friendly Fire -489 Cogmind --------- Core Integrity 0/1000 Matter 34/300 Energy 100/100 System Corruption 13% Temperature Cool (0) Movement Core (1600) Ox31 Location -5/Warlord Parts ------- > --- POWER (1) -------- (None) > --- PROPULSION (4) --- (None) > --- UTILITY (9) ------ High-capacity Storage Unit High-capacity Storage Unit High-capacity Storage Unit > --- WEAPON (3) ------- (None) > --- INVENTORY (28) --- Vortex Chain Reactor Makeshift Sensor Array Makeshift Terrain Scan Processor Advanced Terrain Scan Processor 0b10 Decoder Chip [Looter] 0b10 Decoder Chip [Scout] 0b10 Decoder Chip [Skirmisher] Experimental Targeting Computer Tactical Coordination Suite Tactical Coordination Suite Experimental Core Analyzer Improved Weapon Cycler Experimental Focal Shield Ghost Barrier Recalibrator Hacking Drone Bay (1/1) Minesniffer Drone Bay (10/10) Plasma Storm Vortex Rail Improved Heavy Machine Gun Heavy Autocannon Remote Datajack Peak State ------------ > --- POWER ------------ Antimatter Reactor > --- PROPULSION ------- Flexi-carbon Leg Myomer Leg Experimental Myomer Leg Experimental Myomer Leg > --- UTILITY ---------- Large Storage Unit High-capacity Storage Unit High-capacity Storage Unit High-capacity Storage Unit High-capacity Storage Unit 0b10 Decoder Chip [Generic] Makeshift Armor Plating Makeshift Hacking Suite Makeshift Hacking Suite > --- WEAPON ----------- Improved Heavy Machine Gun Helical Railgun Helical Railgun > --- INVENTORY -------- Antimatter Reactor Antimatter Reactor Vortex Chain Reactor Improved Energy Well Makeshift Sensor Array Makeshift Terrain Scan Processor Advanced Terrain Scan Processor 0b10 Decoder Chip [Looter] 0b10 Decoder Chip [Scout] 0b10 Decoder Chip [Scout] 0b10 Decoder Chip [Skirmisher] Experimental Targeting Computer Tactical Coordination Suite Tactical Coordination Suite Experimental Core Analyzer Improved Weapon Cycler Improved Powered Armor Experimental Focal Shield Hacking Suite Ghost Barrier Recalibrator Hacking Drone Bay Minesniffer Drone Bay Plasma Storm Vortex Rail Vortex Rail Vortex Driver Vortex Driver Improved Heavy Machine Gun Improved Heavy Machine Gun Improved Heavy Machine Gun Vortex Catalyst Activator Remote Datajack CR-A16's Pointy Stick Signal Generator Signal Generator [Rating: 111] Favorites ----------- Power Antimatter Reactor Engine Improved Ion Engine Reactor Antimatter Reactor Propulsion Improved Carbon-fiber Leg Treads Armored Medium Treads Leg Improved Carbon-fiber Leg Flight Unit Makeshift Flight Unit Utility High-capacity Storage Unit Device Experimental Sensor Array Storage High-capacity Storage Unit Processor Terrain Scan Processor Hackware Makeshift Hacking Suite Protection Improved Medium Armor Plating Weapon Improved Heavy Machine Gun Energy Gun EM Pulse Gun Energy Cannon Improved EM Pulse Cannon Ballistic Gun Improved Heavy Machine Gun Ballistic Cannon Light Cannon Launcher Rocket Launcher Special Weapon Remote Datajack Impact Weapon Makeshift Hammer Piercing Weapon CR-A16's Pointy Stick Build | -11 -10 -10 -10 -9 -8 -7 -7 -7 -7 -6 -6 -6 -6 -6 -5 -5 -5 -5 -5 -5 -5 ------- Run | Scr Mat Min Exi Min Mat Fac Low Low Dat Pro Fac Low Low Zio Pro Fac Was Fac Upp Upp War Slots Evolved 10 | . . . . . 4 2 . . . . 2 . . . . 2 . . . . . Power . | . . . . . . . . . . . . . . . . . . . . . . Propulsion 2 | . . . . . 1 . . . . . 1 . . . . . . . . . . Utility 7 | . . . . . 3 2 . . . . . . . . . 2 . . . . . Weapon 1 | . . . . . . . . . . . 1 . . . . . . . . . . Parts Attached 168 | 1 9 3 2 4 16 28 4 2 . 6 1 3 10 2 13 9 5 2 1 3 44 Power 10 | . 1 . . 1 1 1 . . . 1 . . 1 . 1 . 1 . . . 2 Engine 6 | . 1 . . 1 1 1 . . . 1 . . 1 . . . . . . . . Core . | . . . . . . . . . . . . . . . . . . . . . . Reactor 4 | . . . . . . . . . . . . . . . 1 . 1 . . . 2 Propulsion 36 | . 2 2 . . 4 4 2 . . 1 1 . 4 1 2 . 1 . 1 3 8 Treads 5 | . . . . . . . . . . . . . . . . . . . . . 5 Leg 30 | . 2 2 . . 4 4 2 . . 1 1 . 3 1 2 . 1 . 1 3 3 Wheel . | . . . . . . . . . . . . . . . . . . . . . . Hover . | . . . . . . . . . . . . . . . . . . . . . . Flight 1 | . . . . . . . . . . . . . 1 . . . . . . . . Utility 53 | . 3 . 2 . 7 15 1 . . 1 . 1 1 1 5 4 1 . . . 11 Device 17 | . . . . . 5 6 . . . 1 . . . . 3 . . . . . 2 Storage 12 | . 3 . 2 . . . . . . . . . 1 . 1 . 1 . . . 4 Processor 8 | . . . . . 2 3 . . . . . 1 . . . 2 . . . . . Hackware 2 | . . . . . . . . . . . . . . . . 2 . . . . . Protection 14 | . . . . . . 6 1 . . . . . . 1 1 . . . . . 5 Artifact . | . . . . . . . . . . . . . . . . . . . . . . Weapon 69 | 1 3 1 . 3 4 8 1 2 . 3 . 2 4 . 5 5 2 2 . . 23 Energy Gun 7 | . . 1 . . . 1 . . . 2 . . 1 . . . . . . . 2 Energy Cannon 8 | . . . . . . 2 . 1 . . . . 1 . 1 . . . . . 3 Ballistic Gun 28 | 1 1 . . 1 . 3 . . . . . 1 1 . 2 4 1 1 . . 12 Ballistic Cannon 11 | . 2 . . 1 3 . 1 . . . . . 1 . 1 . . . . . 2 Launcher 10 | . . . . 1 1 2 . 1 . 1 . 1 . . . . . . . . 3 Special Weapon 3 | . . . . . . . . . . . . . . . . 1 . 1 . . 1 Impact Weapon 1 | . . . . . . . . . . . . . . . 1 . . . . . . Slashing Weapon . | . . . . . . . . . . . . . . . . . . . . . . Piercing Weapon 1 | . . . . . . . . . . . . . . . . . 1 . . . . Special Melee Weapon . | . . . . . . . . . . . . . . . . . . . . . . Unidentified Prototypes 10 | . . . . . 1 . . . . . . . . . 2 1 . . . . 6 Parts Lost 59 | . . . . 1 3 6 . . . 3 . 2 8 . 8 . . . 1 . 27 Power 6 | . . . . . . 1 . . . . . . 1 . 1 . . . . . 3 Propulsion 14 | . . . . . 1 . . . . . . . 2 . 1 . . . 1 . 9 Utility 16 | . . . . . 1 1 . . . 2 . 1 . . 2 . . . . . 9 Weapon 23 | . . . . 1 1 4 . . . 1 . 1 5 . 4 . . . . . 6 Highest Loss Streak 12 | . . . . 1 3 3 . . . 3 . 1 5 . 2 . . . 1 . 12 Average Slot Usage (%) 97 | . 98 100 100 99 98 98 100 100 100 93 86 95 96 92 96 85 100 100 96 100 95 Engine 6 | . 14 14 14 14 9 6 7 7 7 7 6 6 6 6 1 . . . . . . Reactor 1 | . . . . . . . . . . . . . . . 4 5 5 5 5 5 4 Leg 24 | . 28 28 28 28 26 23 23 23 23 23 26 26 25 26 26 23 23 23 19 23 19 Device 6 | . . . . . 8 12 15 15 15 14 13 10 6 6 5 5 5 5 5 5 . Storage 21 | . 27 28 28 28 18 15 15 15 15 15 13 13 19 20 20 17 19 23 23 23 29 Processor 11 | . . . . . 18 15 15 15 15 15 13 19 20 16 11 10 11 11 11 11 7 Hackware 2 | . . . . . . . . . . . . . . . . 9 11 11 11 11 9 Protection 2 | . . . . . . 8 7 7 7 1 . . . 3 6 5 2 . . . 2 Energy Gun 2 | . . 4 14 13 . . . . . 2 6 6 3 . . . . . . . . Energy Cannon 1 | . . . . . . 4 2 5 7 1 . . 2 . 5 . . . . . . Ballistic Gun 7 | . 19 9 . . 3 4 7 . . . . 5 3 6 5 3 16 16 17 17 15 Ballistic Cannon 5 | . 8 14 14 14 14 4 4 7 7 7 6 2 4 6 5 . . . . . . Naked Turns . | . . . . . . . . . . . . . . . . . . . . . . Heaviest Build 235 | 11 58 58 74 74 78 92 91 93 93 93 84 87 126 121 136 137 161 161 161 161 235 Greatest Support 109 | 20 20 20 20 20 35 52 58 58 58 58 78 78 78 78 78 78 78 76 76 78 109 Greatest Overweight (x) 50 | . 2 5 3 3 2 3 1 1 1 1 1 1 1 1 1 1 2 2 2 2 50 Average Overweight (x) 1 | . 1 2 2 3 2 1 1 1 1 1 1 1 1 1 1 1 1 2 2 2 1 Largest Inventory Capacity 48 | 6 18 18 20 20 20 20 20 20 20 20 20 20 28 28 28 28 36 36 36 36 48 Average Capacity 25 | 6 15 18 19 20 20 20 20 20 20 20 20 20 27 28 28 28 31 36 36 36 41 Most Carried 48 | 6 17 18 19 20 20 20 20 20 20 20 19 20 23 28 28 26 36 36 36 36 48 Average Carried 24 | 4 10 16 18 18 17 19 19 20 20 19 19 19 21 25 27 23 30 35 35 36 40 Final Capacity 36 | 6 18 18 20 20 20 20 20 20 20 20 20 20 28 28 28 28 36 36 36 36 28 Final Carried 36 | 2 15 18 19 18 20 20 20 20 20 20 19 20 22 28 24 26 36 36 36 36 28 Class Distribution -------------------- 39% | Hauler-Mutant 32% | Hauler-Skirmisher 11% | Mutant 4% | Hauler-Gunner 3% | Scavenger-Skirmisher 3% | Scavenger-Mutant 3% | Hauler-Tank Dominant Class ---------------- Mutant | -10/Materials Mutant | -10/Mines Hauler-Mutant | -10/Exiles Hauler-Mutant | -9/Mines Hauler-Mutant | -8/Materials Hauler-Skirmisher | -7/Factory Hauler-Skirmisher | -7/Lower Caves Hauler-Skirmisher | -7/Lower Caves Hauler-Skirmisher | -7/Data Miner Hauler-Mutant | -6/Proximity Caves Scavenger-Skirmisher | -6/Factory Scavenger-Mutant | -6/Lower Caves Hauler-Skirmisher | -6/Lower Caves Hauler-Mutant | -6/Zion Hauler-Skirmisher | -5/Proximity Caves Hacker-Mutant | -5/Factory Hacker-Tank | -5/Waste Hauler-Skirmisher | -5/Factory Hauler-Skirmisher | -5/Upper Caves Hauler-Skirmisher | -5/Upper Caves Hauler-Gunner | -5/Warlord Resources | -11 -10 -10 -10 -9 -8 -7 -7 -7 -7 -6 -6 -6 -6 -6 -5 -5 -5 -5 -5 -5 -5 ----------- Run | Scr Mat Min Exi Min Mat Fac Low Low Dat Pro Fac Low Low Zio Pro Fac Was Fac Upp Upp War Matter Collected 4275 | 159 165 262 . 187 558 343 245 69 . 125 . 176 200 20 141 61 282 179 77 171 855 Remotely . | . . . . . . . . . . . . . . . . . . . . . . Salvage Created 4496 | . 456 245 . 210 507 419 124 159 . 237 . 260 205 . 170 . . . 51 240 1213 Parts 215 | . 19 15 . 13 34 27 6 6 . 6 . 12 10 . 10 . . . . 2 55 Haulers Intercepted 2 | . 1 . . . . . . . . . . . . . . . . . 1 . . Recyclers Shooed 3 | . . . . 1 2 . . . . . . . . . . . . . . . . Parts Field Recycled . | . . . . . . . . . . . . . . . . . . . . . . Retrieved Matter . | . . . . . . . . . . . . . . . . . . . . . . Parts Self-Destructed 252 | . . . . . . . 12 9 . 8 . 5 10 . 9 . . . 18 24 157 Prevented 27 | . . . . . . . . . . 3 . 1 . . 13 . . . . . 10 Kills | -11 -10 -10 -10 -9 -8 -7 -7 -7 -7 -6 -6 -6 -6 -6 -5 -5 -5 -5 -5 -5 -5 ------- Run | Scr Mat Min Exi Min Mat Fac Low Low Dat Pro Fac Low Low Zio Pro Fac Was Fac Upp Upp War Combat Hostiles Destroyed 106 | . 9 8 . 8 12 11 3 4 . 4 . 7 6 . 2 . . . . 4 28 Guns 49 | . 7 5 . 2 . 3 1 1 . . . 4 5 . . . . . . 4 17 Cannons 32 | . 2 3 . 3 8 1 2 . . 4 . . 1 . 1 . . . . . 7 AOE 22 | . . . . 3 4 6 . 3 . . . 3 . . . . . . . . 3 Classes Destroyed 23 | . 6 . . 1 4 2 . . . . . 2 1 . 1 . . . . 1 5 Worker 4 | . . . . . . 4 . . . . . . . . . . . . . . . Builder 1 | . . . . . 1 . . . . . . . . . . . . . . . . Tunneler 1 | . 1 . . . . . . . . . . . . . . . . . . . . Hauler 2 | . 1 . . . . . . . . . . . . . . . . . 1 . . Recycler 4 | . 2 . . . 2 . . . . . . . . . . . . . . . . Minesweeper 1 | . . . . . . . . . . . . . 1 . . . . . . . . Mechanic 1 | . . . . . 1 . . . . . . . . . . . . . . . . Operator 1 | . . . . . 1 . . . . . . . . . . . . . . . . Watcher 3 | . 1 . . . . 2 . . . . . . . . . . . . . . . Swarmer 25 | . 3 3 . 3 4 3 . . . . . 3 4 . . . . . . 1 1 Grunt 49 | . 6 5 . 4 5 6 3 3 . 4 . . . . 1 . . . . . 12 Brawler 5 | . . . . . . . . . . . . . . . . . . . . 2 3 Duelist 2 | . . . . 1 . 1 . . . . . . . . . . . . . . . Protector 1 | . . . . . . . . . . . . . . . . . . . . . 1 Sentry 5 | . . . . . 3 . . 1 . . . . . . . . . . . 1 . Demolisher 1 | . . . . . . . . . . . . . . . . . . . . . 1 Specialist 1 | . . . . . . . . . . . . . . . . . . . . . 1 Hunter 3 | . . . . . . . . . . . . 1 2 . . . . . . . . Programmer 4 | . . . . . . 1 . . . . . . . . . . . . . . 3 Behemoth 1 | . . . . . . . . . . . . . . . 1 . . . . . . Striker 1 | . . . . . . . . . . . . . . . . . . . . . 1 Executioner 5 | . . . . . . . . . . . . . . . . . . . . . 5 Surgeon 1 | . . . . . . . . . . . . . . . . . . . . . 1 Fireman 3 | . . . . . . . . . . . . 3 . . . . . . . . . Best Kill Streak 7 | . 3 3 . 3 5 6 3 4 . 2 . 3 4 . 1 . . . 1 2 7 Combat Bots Only 7 | . 3 3 . 3 4 4 3 4 . 2 . 3 4 . 1 . . . . 2 7 Max Kills in Single Turn 3 | . 2 1 . 2 3 3 1 2 . 1 . 2 1 . 1 . . . 1 2 1 Gunslinging 1 | . . . . . . . . . . . . . . . . . . . . 1 . Exploded 2 | . . . . 2 2 1 . 2 . . . 2 . . . . . . . . 1 Melee . | . . . . . . . . . . . . . . . . . . . . . . Uniques/NPCs Destroyed . | . . . . . . . . . . . . . . . . . . . . . . Combat | -11 -10 -10 -10 -9 -8 -7 -7 -7 -7 -6 -6 -6 -6 -6 -5 -5 -5 -5 -5 -5 -5 -------- Run | Scr Mat Min Exi Min Mat Fac Low Low Dat Pro Fac Low Low Zio Pro Fac Was Fac Upp Upp War Damage Taken 13413 | . 486 216 . 156 696 1295 92 114 . 256 . 267 847 . 1391 . . 28 54 84 7431 Core 1617 | . 67 24 . 26 74 87 . 12 . 30 . 17 80 . 183 . . . . . 1017 Absorbed by Shields 659 | . . . . . . . . . . . . . . . . . . . . . 659 Core Remaining (%) 77 | 100 . . . 53 86 . . . . 81 . . . . 67 . . . . . . Volleys Fired 380 | . 45 26 . 13 37 64 6 5 . 14 . 16 24 . 28 1 11 1 2 6 81 Largest 3 | . 2 2 . 2 2 2 2 2 . 2 . 3 3 . 3 1 3 1 3 3 3 Hottest 213 | . 55 75 . 75 70 100 67 67 . 113 . 117 213 . 152 30 45 30 45 45 145 Shots Fired 709 | . 90 50 . 23 68 80 12 8 . 24 . 37 45 . 40 1 32 2 7 16 174 Gun 411 | . 69 25 . 10 8 41 6 3 . . . 23 21 . 11 . 32 1 7 16 138 Cannon 267 | . 21 25 . 11 55 32 6 3 . 23 . 10 24 . 29 . . . . . 28 Launcher 25 | . . . . 2 5 7 . 2 . 1 . 4 . . . . . . . . 4 Special 6 | . . . . . . . . . . . . . . . . 1 . 1 . . 4 Kinetic 569 | . 90 45 . 11 63 51 12 6 . 13 . 21 25 . 31 . 32 1 7 16 145 Thermal 23 | . . . . . . 4 . . . . . . 19 . . . . . . . . Explosive 21 | . . . . 2 5 7 . 2 . 1 . 4 . . . . . . . . . Electromagnetic 65 | . . 5 . 10 . 18 . . . 10 . 12 1 . 9 . . . . . . Entropic 25 | . . . . . . . . . . . . . . . . . . . . . 25 Robot Hit Streak 52 | . 31 20 . 14 26 24 10 10 . 20 . 11 7 . 16 2 17 1 6 8 52 Robot Miss Streak 4 | . 3 1 . 1 2 3 2 3 . 2 . 2 3 . 2 . 2 3 . 1 4 Penetration Max 1 | . . . . . . . . . . . . . . . . . . . . . 1 Secondary Targets 5 | . 1 . . . . . . . . . . . . . . . . . . 2 2 Max Gunslinging Chain 1 | . 1 . . . . . . . . . . . . . . . . . . 1 1 Shots Hit Robots 528 | . 66 25 . 17 49 70 10 6 . 21 . 27 31 . 17 1 26 1 5 14 142 Core Hits 269 | . 20 15 . 10 30 36 13 12 . 15 . 18 19 . 8 . 1 . 1 7 64 Critical Hits 9 | . 1 1 . . 1 1 . 1 . . . . 1 . . . . . . . 3 Critical Kills 5 | . . 1 . . 1 . . 1 . . . . 1 . . . . . . . 1 Critical Parts Destroyed 4 | . 1 . . . . 1 . . . . . . . . . . . . . . 2 Melee Attacks 8 | . . . . . . . . . . . . . . . 7 . 1 . . . . Impact 7 | . . . . . . . . . . . . . . . 7 . . . . . . Slashing . | . . . . . . . . . . . . . . . . . . . . . . Piercing 1 | . . . . . . . . . . . . . . . . . 1 . . . . Sneak Attacks . | . . . . . . . . . . . . . . . . . . . . . . Combat Hostiles . | . . . . . . . . . . . . . . . . . . . . . . Follow-up Attacks . | . . . . . . . . . . . . . . . . . . . . . . Damage Inflicted 16057 | . 866 416 . 597 1245 2140 225 297 . 427 . 587 580 . 453 . 608 18 116 306 7176 Guns 6923 | . 641 210 . 126 106 617 73 28 . . . 271 283 . 267 . 608 18 116 306 3253 Cannons 5638 | . 225 180 . 138 717 732 152 36 . 427 . 128 297 . 186 . . . . . 2420 Explosions 3423 | . . . . 313 422 791 . 217 . . . 188 . . . . . . . . 1492 Melee . | . . . . . . . . . . . . . . . . . . . . . . Ramming 73 | . . 26 . 20 . . . 16 . . . . . . . . . . . . 11 Kinetic 9373 | . 866 326 . 138 823 831 225 64 . 163 . 254 313 . 284 . 608 18 116 306 4038 Thermal 387 | . . . . 78 . 42 . . . . . . 267 . . . . . . . . Explosive 1853 | . . . . 235 422 791 . 217 . . . 188 . . . . . . . . . Electromagnetic 1244 | . . 64 . 126 . 476 . . . 264 . 145 . . 169 . . . . . . Impact . | . . . . . . . . . . . . . . . . . . . . . . Slashing . | . . . . . . . . . . . . . . . . . . . . . . Piercing . | . . . . . . . . . . . . . . . . . . . . . . Entropic 3127 | . . . . . . . . . . . . . . . . . . . . . 3127 Highest Corruption 25 | . 1 2 2 2 . . . . . . . . . . 15 . 25 25 25 25 25 Average Corruption 10 | . 1 1 2 2 . . . . . . . . . . 1 . 14 25 25 25 12 Corruption Purged . | . . . . . . . . . . . . . . . . . . . . . . Effects 203 | . 4 5 9 9 . . . . . . . . . . 6 . 20 39 39 41 31 Message Errors 38 | . 2 1 7 4 . . . . . . . . . . . . 3 7 8 5 1 Matter Fused 31 | . . . . . . . . . . . . . . . 2 . 4 10 9 4 2 Heat Flow Errors 10 | . . . . 1 . . . . . . . . . . 1 . . 3 2 2 1 Energy Discharges 24 | . 1 . 1 1 . . . . . . . . . . . . . 4 9 4 4 Data Loss (minor) 21 | . . 2 1 2 . . . . . . . . . . 1 . 4 2 1 4 4 Data Loss (major) 11 | . . . . . . . . . . . . . . . . . 2 4 1 2 2 Misfires 8 | . . . . . . . . . . . . . . . . . 1 1 1 3 2 Alerts 2 | . . . . . . . . . . . . . . . . . 1 . 1 . . Misdirections 32 | . . . . . . . . . . . . . . . . . 2 8 6 12 4 Targeting Errors 18 | . 1 . . . . . . . . . . . . . 2 . 1 . 1 4 9 Weapon Failures 8 | . . 2 . 1 . . . . . . . . . . . . 2 . . 1 2 Overload Shots . | . . . . . . . . . . . . . . . . . . . . . . Overflow Damage 496 | . . 5 . 23 10 30 . 9 . . . . 13 . . . . . . . 406 Projectiles 325 | . . 5 . . . 10 . . . . . . 13 . . . . . . . 297 Explosions 162 | . . . . 23 10 20 . . . . . . . . . . . . . . 109 Melee 9 | . . . . . . . . 9 . . . . . . . . . . . . . Knockbacks 32 | . 5 6 . 1 8 . . . . 6 . . 2 . . . . . . . 4 Impact . | . . . . . . . . . . . . . . . . . . . . . . Kinetic 28 | . 4 4 . 1 7 . . . . 6 . . 2 . . . . . . . 4 Secondary 4 | . 1 2 . . 1 . . . . . . . . . . . . . . . . Self-Inflicted Damage 414 | . . 8 . 74 24 109 . 8 . . . 12 . . . . . . . . 179 Shots 9 | . . . . 3 1 3 . . . . . 1 . . . . . . . . 1 Rammed 5 | . . 1 . 1 . . . 1 . . . . . . . . . . . . 2 Targets Rammed 7 | . . 3 . 1 . . . 1 . . . . . . . . . . . . 2 Kicked 2 | . . 2 . . . . . . . . . . . . . . . . . . . Crushed . | . . . . . . . . . . . . . . . . . . . . . . Highest Temperature 537 | . 36 93 . 261 45 200 20 14 . 226 . 147 381 . 243 4 . 202 131 264 537 Average Temperature 112 | . 12 28 . 64 13 60 15 8 . 101 . 72 161 . 57 4 . 94 61 123 214 Received Heat Transfer 2452 | . 264 123 . 30 342 270 72 57 . 147 . 120 . . 84 . . . . 18 925 Effects 28 | . . . . . . . . . . . . . 1 . . . . . . 3 24 Shutdowns 4 | . . . . . . . . . . . . . 1 . . . . . . . 3 Energy Bleed 5 | . . . . . . . . . . . . . . . . . . . . . 5 Interference 14 | . . . . . . . . . . . . . . . . . . . . 3 11 Short Circuit 2 | . . . . . . . . . . . . . . . . . . . . . 2 Damage (minor) 3 | . . . . . . . . . . . . . . . . . . . . . 3 Siege Activations . | . . . . . . . . . . . . . . . . . . . . . . Robots Corrupted 2 | . . . . . . 1 . . . . . . . . 1 . . . . . . Combat Hostiles 2 | . . . . . . 1 . . . . . . . . 1 . . . . . . Parts Fried 5 | . . . . . . 2 . . . 1 . . . . 2 . . . . . . Impact Corruptions 1 | . . . . . . . . 1 . . . . . . . . . . . . . Robots Melted . | . . . . . . . . . . . . . . . . . . . . . . Combat Hostiles . | . . . . . . . . . . . . . . . . . . . . . . Parts Melted 2 | . . . . . . . . . . . . . 1 . 1 . . . . . . Heat Transferred 544 | . . . . 100 . 74 . . . . . . 370 . . . . . . . . Parts Sabotaged . | . . . . . . . . . . . . . . . . . . . . . . Parts Stolen . | . . . . . . . . . . . . . . . . . . . . . . Parts Stripped . | . . . . . . . . . . . . . . . . . . . . . . Power Chain Reactions 1 | . . . . 1 . . . . . . . . . . . . . . . . . Missiles Intercepted . | . . . . . . . . . . . . . . . . . . . . . . Alert | -11 -10 -10 -10 -9 -8 -7 -7 -7 -7 -6 -6 -6 -6 -6 -5 -5 -5 -5 -5 -5 -5 ------- Run | Scr Mat Min Exi Min Mat Fac Low Low Dat Pro Fac Low Low Zio Pro Fac Was Fac Upp Upp War Peak Influence 484 | . 177 155 . 144 323 186 . . . . . . . . . 36 18 484 . . . Initial 125 | . . 50 . . . 125 . . . . . . . . . 36 10 11 . . . Average 114 | . 75 103 . 46 178 102 . . . . . . . . . 36 12 326 . . . Maximum Alert Level 2 | . . . . . 1 . . . . . . . . . . . . 2 . . . Low Security (%) 84 | 100 100 100 . 100 52 100 . . . . 100 . . . . 100 100 9 . . . Level 1 13 | . . . . . 47 . . . . . . . . . . . . 74 . . . Level 2 1 | . . . . . . . . . . . . . . . . . . 15 . . . Level 3 . | . . . . . . . . . . . . . . . . . . . . . . Level 4 . | . . . . . . . . . . . . . . . . . . . . . . Level 5 . | . . . . . . . . . . . . . . . . . . . . . . High Security . | . . . . . . . . . . . . . . . . . . . . . . Max Security . | . . . . . . . . . . . . . . . . . . . . . . Squads Dispatched 8 | . 1 . . . 2 3 . . . . . . . . . . . 1 . 1 . Investigation 3 | . 1 . . . 1 . . . . . . . . . . . . 1 . . . Extermination 1 | . . . . . . 1 . . . . . . . . . . . . . . . Reinforcement 3 | . . . . . 1 2 . . . . . . . . . . . . . . . Assault 1 | . . . . . . . . . . . . . . . . . . . . 1 . Garrison . | . . . . . . . . . . . . . . . . . . . . . . Intercept . | . . . . . . . . . . . . . . . . . . . . . . Construction Impeded 1 | . . . . . . 1 . . . . . . . . . . . . . . . Haulers Reinforced . | . . . . . . . . . . . . . . . . . . . . . . Stealth | -11 -10 -10 -10 -9 -8 -7 -7 -7 -7 -6 -6 -6 -6 -6 -5 -5 -5 -5 -5 -5 -5 --------- Run | Scr Mat Min Exi Min Mat Fac Low Low Dat Pro Fac Low Low Zio Pro Fac Was Fac Upp Upp War Distress Signals 5 | . 1 . . . 1 2 . . . . . . . . . . . 1 . . . Communications Jammed . | . . . . . . . . . . . . . . . . . . . . . . Distress Signals . | . . . . . . . . . . . . . . . . . . . . . . Times Spotted 227 | . 31 11 . 9 24 24 3 4 . 7 . 8 6 . 6 . 3 6 9 21 55 Peak Tracking Total 15 | . 4 3 . 3 4 6 3 3 . 3 . 4 4 . 4 . 2 1 2 8 15 Tactical Retreats 30 | . 12 3 . 1 . 4 . . . . . . . . 1 . . . . 3 6 Traps | -11 -10 -10 -10 -9 -8 -7 -7 -7 -7 -6 -6 -6 -6 -6 -5 -5 -5 -5 -5 -5 -5 ------- Run | Scr Mat Min Exi Min Mat Fac Low Low Dat Pro Fac Low Low Zio Pro Fac Was Fac Upp Upp War Traps Triggered 5 | . 3 . . . . . . . . . . . . . . 1 . . . . 1 Indirectly . | . . . . . . . . . . . . . . . . . . . . . . Trap Hack Attempts . | . . . . . . . . . . . . . . . . . . . . . . Triggered . | . . . . . . . . . . . . . . . . . . . . . . Disarmed . | . . . . . . . . . . . . . . . . . . . . . . Reprogrammed . | . . . . . . . . . . . . . . . . . . . . . . Reused . | . . . . . . . . . . . . . . . . . . . . . . Traps Extracted . | . . . . . . . . . . . . . . . . . . . . . . Installed . | . . . . . . . . . . . . . . . . . . . . . . Triggered 14 | . . . . . . . . . . . . . . . . . . . . . 14 Machines | -11 -10 -10 -10 -9 -8 -7 -7 -7 -7 -6 -6 -6 -6 -6 -5 -5 -5 -5 -5 -5 -5 ---------- Run | Scr Mat Min Exi Min Mat Fac Low Low Dat Pro Fac Low Low Zio Pro Fac Was Fac Upp Upp War Machines Disabled 6 | . . . . 2 1 . . . . . . . . . . . . 1 . . 2 Max in Single Turn 1 | . . . . 1 1 . . . . . . . . . . . . . . . 1 Garrison Access 1 | . . . . . . 1 . . . . . . . . . . . . . . . Machines Sabotaged . | . . . . . . . . . . . . . . . . . . . . . . Garrisons Compromised . | . . . . . . . . . . . . . . . . . . . . . . Overloaded Fab Kills . | . . . . . . . . . . . . . . . . . . . . . . Fab Network Shutdowns . | . . . . . . . . . . . . . . . . . . . . . . Hacking | -11 -10 -10 -10 -9 -8 -7 -7 -7 -7 -6 -6 -6 -6 -6 -5 -5 -5 -5 -5 -5 -5 --------- Run | Scr Mat Min Exi Min Mat Fac Low Low Dat Pro Fac Low Low Zio Pro Fac Was Fac Upp Upp War Machines Accessed 25 | . 5 . 1 . 3 3 1 . 4 . . 1 . 1 . . . 1 . . 5 Terminals 9 | . 4 . . . 3 . 1 . . . . 1 . . . . . . . . . Fabricators 1 | . . . . . . 1 . . . . . . . . . . . . . . . Repair Stations 1 | . 1 . . . . . . . . . . . . . . . . . . . . Recycling Units 2 | . . . . . . 1 . . . . . . . . . . . 1 . . . Scanalyzers . | . . . . . . . . . . . . . . . . . . . . . . Garrison Access 1 | . . . . . . 1 . . . . . . . . . . . . . . . Total Hacks 93 | . 19 . 4 . 13 4 2 . 29 . . 1 . 6 . . . 3 . . 12 Successful 79 | . 13 . 4 . 7 4 2 . 29 . . 1 . 6 . . . 1 . . 12 Failed 14 | . 6 . . . 6 . . . . . . . . . . . . 2 . . . Catastrophic 1 | . 1 . . . . . . . . . . . . . . . . . . . . Database Lockouts . | . . . . . . . . . . . . . . . . . . . . . . Manual 31 | . 10 . 1 . 11 . . . . . . . . . . 3 . 5 . . 1 Terminals 26 | . 10 . . . 13 . 2 . . . . 1 . . . . . . . . . Fabricators 2 | . . . . . . 2 . . . . . . . . . . . . . . . Repair Stations 9 | . 9 . . . . . . . . . . . . . . . . . . . . Recycling Units 4 | . . . . . . 1 . . . . . . . . . . . 3 . . . Scanalyzers . | . . . . . . . . . . . . . . . . . . . . . . Garrison Access 1 | . . . . . . 1 . . . . . . . . . . . . . . . Terminal Hacks 59 | . 1 . 4 . 4 . 2 . 29 . . 1 . 6 . . . . . . 12 Record 28 | . . . 4 . . . 2 . 11 . . 1 . . . . . . . . 10 Part Schematic 15 | . . . . . . . . . 9 . . . . 6 . . . . . . . Robot Schematic 6 | . . . . . . . . . 6 . . . . . . . . . . . . Prototype ID Bank 4 | . . . . . 1 . . . 3 . . . . . . . . . . . . Open Door 2 | . . . . . . . . . . . . . . . . . . . . . 2 Level Access Points 1 | . . . . . 1 . . . . . . . . . . . . . . . . Branch Access Points 2 | . 1 . . . 1 . . . . . . . . . . . . . . . . Zone Layout 1 | . . . . . 1 . . . . . . . . . . . . . . . . Fabricator Hacks 2 | . . . . . . 2 . . . . . . . . . . . . . . . Network Status 1 | . . . . . . 1 . . . . . . . . . . . . . . . Build 1 | . . . . . . 1 . . . . . . . . . . . . . . . Repair Station Hacks 8 | . 8 . . . . . . . . . . . . . . . . . . . . Scan Component 4 | . 4 . . . . . . . . . . . . . . . . . . . . Repair 4 | . 4 . . . . . . . . . . . . . . . . . . . . Recycling Unit Hacks 1 | . . . . . . 1 . . . . . . . . . . . . . . . Report Inventory 1 | . . . . . . 1 . . . . . . . . . . . . . . . Scanalyzer . | . . . . . . . . . . . . . . . . . . . . . . Garrison Access Hacks 1 | . . . . . . 1 . . . . . . . . . . . . . . . Seal Access 1 | . . . . . . 1 . . . . . . . . . . . . . . . Unauthorized Hacks 8 | . 4 . . . 3 . . . . . . . . . . . . 1 . . . Terminals 7 | . 4 . . . 3 . . . . . . . . . . . . . . . . Botnet 7 | . 4 . . . 3 . . . . . . . . . . . . . . . . Fabricators . | . . . . . . . . . . . . . . . . . . . . . . Repair Stations . | . . . . . . . . . . . . . . . . . . . . . . Recycling Units 1 | . . . . . . . . . . . . . . . . . . 1 . . . Tunnel 1 | . . . . . . . . . . . . . . . . . . 1 . . . Scanalyzers . | . . . . . . . . . . . . . . . . . . . . . . Garrison Access . | . . . . . . . . . . . . . . . . . . . . . . Data Cores Recovered . | . . . . . . . . . . . . . . . . . . . . . . Used . | . . . . . . . . . . . . . . . . . . . . . . Hacking Detections 9 | . 4 . . . 3 1 . . . . . . . . . . . 1 . . . Full Trace Events 1 | . . . . . 1 . . . . . . . . . . . . . . . . Feedback Events . | . . . . . . . . . . . . . . . . . . . . . . Feedback Blocked . | . . . . . . . . . . . . . . . . . . . . . . Robot Schematics Acquired 6 | . . . . . . . . . 6 . . . . . . . . . . . . Robots Built . | . . . . . . . . . . . . . . . . . . . . . . Matter . | . . . . . . . . . . . . . . . . . . . . . . Time . | . . . . . . . . . . . . . . . . . . . . . . Total Robot Build Rating . | . . . . . . . . . . . . . . . . . . . . . . Part Schematics Acquired 15 | . . . . . . . . . 9 . . . . 6 . . . . . . . Parts Built 2 | . . . . . . 2 . . . . . . . . . . . . . . . Matter 234 | . . . . . . 234 . . . . . . . . . . . . . . . Time 39 | . . . . . . 39 . . . . . . . . . . . . . . . Total Part Build Rating 14 | . . . . . . 14 . . . . . . . . . . . . . . . Parts Repaired 4 | . 4 . . . . . . . . . . . . . . . . . . . . Time 104 | . 104 . . . . . . . . . . . . . . . . . . . . Parts Recycled . | . . . . . . . . . . . . . . . . . . . . . . Recycled Matter . | . . . . . . . . . . . . . . . . . . . . . . Retrieved Matter . | . . . . . . . . . . . . . . . . . . . . . . Retrieved Components . | . . . . . . . . . . . . . . . . . . . . . . Parts Scanalyzed . | . . . . . . . . . . . . . . . . . . . . . . Part Schematics Acquired . | . . . . . . . . . . . . . . . . . . . . . . Parts Damaged . | . . . . . . . . . . . . . . . . . . . . . . Bothacking | -11 -10 -10 -10 -9 -8 -7 -7 -7 -7 -6 -6 -6 -6 -6 -5 -5 -5 -5 -5 -5 -5 ------------ Run | Scr Mat Min Exi Min Mat Fac Low Low Dat Pro Fac Low Low Zio Pro Fac Was Fac Upp Upp War Used RIF Installer . | . . . . . . . . . . . . . . . . . . . . . . Robots Hacked 2 | . . . . . . . . . . . . . . . . 1 . 1 . . . Non-combat . | . . . . . . . . . . . . . . . . . . . . . . Combat 2 | . . . . . . . . . . . . . . . . 1 . 1 . . . Robot Hacks Applied 2 | . . . . . . . . . . . . . . . . 1 . 1 . . . parse_system 2 | . . . . . . . . . . . . . . . . 1 . 1 . . . Relay Couplers Released . | . . . . . . . . . . . . . . . . . . . . . . Robots Rewired 6 | . . . . . . . . . . . . . . . . . . . . 2 4 Allies Hacked . | . . . . . . . . . . . . . . . . . . . . . . Hacks Repelled . | . . . . . . . . . . . . . . . . . . . . . . Allies | -11 -10 -10 -10 -9 -8 -7 -7 -7 -7 -6 -6 -6 -6 -6 -5 -5 -5 -5 -5 -5 -5 -------- Run | Scr Mat Min Exi Min Mat Fac Low Low Dat Pro Fac Low Low Zio Pro Fac Was Fac Upp Upp War Total Allies 36 | . . . . 2 . . . . . 1 . . . 4 . 3 19 1 . 2 4 Largest Group 19 | . . . . 2 1 . . . . 1 1 1 . 4 3 3 19 19 17 13 5 Highest-Rated Group 808 | . . . . 45 31 . . . . 94 94 94 . 151 112 210 696 808 756 625 333 Highest-Rated Ally 137 | . . . . 31 31 . . . . 94 94 94 . 40 40 70 70 137 137 137 137 Zionite Dispatches 2 | . . . . . . . . . . . . . . . . 1 . 1 . . . Light 1 | . . . . . . . . . . . . . . . . 1 . . . . . Hero 1 | . . . . . . . . . . . . . . . . . . 1 . . . Total Orders . | . . . . . . . . . . . . . . . . . . . . . . Ally Attacks 416 | . . . . 2 10 . . . . 15 . 13 . . 53 . 90 94 60 76 3 Total Damage 11339 | . . . . 41 123 . . . . 329 . 320 . . 1134 . 2086 2121 2619 2461 105 Kills 64 | . . . . . 2 . . . . 3 . 2 . . 7 . 6 15 13 16 . Allies Corrupted 1 | . . . . . . . . . . . . . . . . . . . . 1 . Allies Melted . | . . . . . . . . . . . . . . . . . . . . . . Intel | -11 -10 -10 -10 -9 -8 -7 -7 -7 -7 -6 -6 -6 -6 -6 -5 -5 -5 -5 -5 -5 -5 ------- Run | Scr Mat Min Exi Min Mat Fac Low Low Dat Pro Fac Low Low Zio Pro Fac Was Fac Upp Upp War Robot Analysis Total . | . . . . . . . . . . . . . . . . . . . . . . Derelict Logs Recovered 8 | . . 1 . 1 . . 1 1 . 2 . 1 . 1 . . . . . . . Drone Launches . | . . . . . . . . . . . . . . . . . . . . . . Drone Recoveries . | . . . . . . . . . . . . . . . . . . . . . . Decoded 0b10 Intel 47 | . . . . . . . . . . . . . . . . 6 11 30 . . . Emergency Access 1 | . . . . . . . . . . . . . . . . 1 . . . . . Items 43 | . . . . . . . . . . . . . . . . 5 10 28 . . . Machines 1 | . . . . . . . . . . . . . . . . . . 1 . . . Exits 2 | . . . . . . . . . . . . . . . . . 1 1 . . . Exploration | -11 -10 -10 -10 -9 -8 -7 -7 -7 -7 -6 -6 -6 -6 -6 -5 -5 -5 -5 -5 -5 -5 ------------- Run | Scr Mat Min Exi Min Mat Fac Low Low Dat Pro Fac Low Low Zio Pro Fac Was Fac Upp Upp War Turns Passed 19082 | 4 1133 791 1093 831 729 1218 1697 327 997 732 39 967 1067 1921 766 197 388 640 768 553 2224 Spaces Moved 8569 | 1 498 342 533 371 315 540 631 201 120 236 21 533 525 1195 241 97 181 324 377 276 1011 Core 1 | . . . . . . . . . . . . . . . . . . . . . 1 Treads 38 | . . . . . . . . . . . . . . . . . . . . . 38 Legs 8530 | 1 498 342 533 371 315 540 631 201 120 236 21 533 525 1195 241 97 181 324 377 276 972 Wheels . | . . . . . . . . . . . . . . . . . . . . . . Hover . | . . . . . . . . . . . . . . . . . . . . . . Flight . | . . . . . . . . . . . . . . . . . . . . . . Fastest Speed 120 | 120 120 180 180 210 180 156 153 153 153 153 155 155 155 155 157 160 157 187 185 185 140 Average Speed 170 | 120 169 180 204 210 180 159 153 153 153 153 155 155 155 157 158 160 171 187 185 185 182 Slowest Speed 2550 | 120 180 270 210 210 180 210 156 153 153 153 155 155 157 160 160 160 187 187 187 186 2550 Overloaded Moves . | . . . . . . . . . . . . . . . . . . . . . . Propulsion Burnouts . | . . . . . . . . . . . . . . . . . . . . . . Robots Hopped . | . . . . . . . . . . . . . . . . . . . . . . Cave-ins Triggered 4 | . . . . . . . . . . . . . . . 3 . . . . . 1 Exploration Rate (%) 49 | 2 76 80 90 66 26 14 72 37 72 41 1 66 54 91 34 3 90 8 49 46 81 Regions Visited 21 Branch Regions 14 Pre-discovered Areas 5 | . . 1 1 . . . . . 1 . . . . 1 . . . 1 . . . Known Exits Taken 13 | . 1 . . . 1 1 1 1 1 1 1 1 1 1 1 . . 1 . . . Unknown Exits Taken 6 | 1 . 1 1 1 . . . . . . . . . . . . . . 1 1 . Scrap Searched 13 | . . 1 . . . . 1 . . 1 . 3 4 1 1 . . . 1 . . Spaces Dug 25 | . . . . . . . . . . . . 11 . . 13 . 1 . . . . Terrain Destroyed 285 | . . . . 28 38 34 . 8 . 10 . 37 8 . 27 . 1 . . . 94 Melee 8 | . . . . . . . . . . . . . . . 7 . 1 . . . . Projectile 38 | . . . . . . . . . . . . . 8 . 20 . . . . . 10 AOE 239 | . . . . 28 38 34 . 8 . 10 . 37 . . . . . . . . 84 Terrain Rammed . | . . . . . . . . . . . . . . . . . . . . . . Walls Destroyed . | . . . . . . . . . . . . . . . . . . . . . . Machines Disabled . | . . . . . . . . . . . . . . . . . . . . . . Actions | -11 -10 -10 -10 -9 -8 -7 -7 -7 -7 -6 -6 -6 -6 -6 -5 -5 -5 -5 -5 -5 -5 --------- Run | Scr Mat Min Exi Min Mat Fac Low Low Dat Pro Fac Low Low Zio Pro Fac Was Fac Upp Upp War Total 12386 | 5 695 462 537 397 410 818 1346 211 933 582 28 645 737 1234 582 138 240 358 443 308 1277 Wait 3025 | . 128 82 . 8 22 162 700 3 814 325 7 84 165 20 285 25 28 26 60 15 66 Move 8547 | . 497 341 532 370 314 539 630 200 119 235 20 532 524 1194 238 97 180 323 376 275 1011 Hop . | . . . . . . . . . . . . . . . . . . . . . . Pick Up 117 | . 13 4 1 . 12 12 2 . . 1 . 7 12 11 2 4 11 3 2 . 20 Fast Attach 28 | . 3 . . . 2 2 . . . . . . . 1 3 3 . . 1 . 13 Attach 68 | . . . . 1 7 11 . . . 2 1 3 8 . 9 4 . . . . 22 Detach 23 | . . . . . 2 3 . . . . . . . . 3 2 . . . . 13 Swap 72 | 1 6 3 2 3 7 15 4 2 . 4 . . 2 1 1 2 5 2 . 3 9 Drop 91 | 4 3 3 2 1 7 10 4 . . 1 . 3 2 7 4 . 4 3 2 3 28 Fire 380 | . 45 26 . 13 37 64 6 5 . 14 . 16 24 . 28 1 11 1 2 6 81 Melee 8 | . . . . . . . . . . . . . . . 7 . 1 . . . . Ram . | . . . . . . . . . . . . . . . . . . . . . . Kick 5 | . . 3 . 1 . . . 1 . . . . . . . . . . . . . Crush 2 | . . . . . . . . . . . . . . . . . . . . . 2 Escape Stasis 2 | . . . . . . . . . . . . . . . 2 . . . . . . Rewire 18 | . . . . . . . . . . . . . . . . . . . . 6 12 Trap . | . . . . . . . . . . . . . . . . . . . . . . Miscellaneous . | . . . . . . . . . . . . . . . . . . . . . . Route ------- -11/Scrapyard -10/Materials (discovered 3 exits: [*Mat] / *Min x2) -10/Mines (discovered 2 exits: [*Mat] / *Exi) -10/Exiles (discovered 2 exits: [*Min x2]) -9/Mines -8/Materials (discovered 3 exits: *Fac x3) -7/Factory -7/Lower Caves -7/Lower Caves -7/Data Miner -6/Proximity Caves -6/Factory -6/Lower Caves -6/Lower Caves -6/Zion -5/Proximity Caves -5/Factory -5/Waste -5/Factory -5/Upper Caves -5/Upper Caves -5/Warlord History --------- Turn | Location | Event 5 | -11/Scrapyard | Discovered new exit (range 0) 5 | -11/Scrapyard | Entered Materials 306 | -10/Materials | Build established: Mutant 321 | -10/Materials | Discovered new exit (range 16) 386 | -10/Materials | Identified exit to Mines 806 | -10/Materials | Repaired Aluminum Leg 834 | -10/Materials | Repaired Lgt. Cannon 861 | -10/Materials | Repaired Assault Rifle 889 | -10/Materials | Repaired Aluminum Leg 895 | -10/Materials | Discovered new exit (range 3) 1138 | -10/Materials | Entered Mines 1196 | -10/Mines | Learned location of Recycling (-7) 1207 | -10/Mines | Discovered new exit (range 12) 1340 | -10/Mines | Received a Rocket Launcher from a helpful Derelict 1520 | -10/Mines | Excavation squad dispatched 1520 | -10/Mines | A large section of the Mines collapsed 1850 | -10/Mines | Found a damaged Exp. Sensor Array with a note attached 1854 | -10/Mines | Found Prototype Device 1921 | -10/Mines | Deemed a non-threat by the Exiles lab entrance 1921 | -10/Mines | Discovered new exit (range 5) 1929 | -10/Mines | Entered Exiles 1956 | -10/Exiles | Discovered new exit (range 14) 2003 | -10/Exiles | Met 8R-AWN 2032 | -10/Exiles | Met EX-HEX 2142 | -10/Exiles | Met EX-DEC 2222 | -10/Exiles | Visited The Gauntlet 2412 | -10/Exiles | Build established: Hauler-Mutant 2486 | -10/Exiles | Learned location of Zion (-6) 2591 | -10/Exiles | Discovered new exit (range 14) 2736 | -10/Exiles | Met EX-BIN 3022 | -10/Exiles | Entered Mines 3077 | -9/Mines | Learned Materials garrison access intel 3802 | -9/Mines | Discovered new exit (range 9) 3853 | -9/Mines | Entered Materials 3853 | -8/Materials | Accompanied by 1 ally 3853 | -8/Materials | Evolved 4 slots: Propulsion x1, Utility x3 3854 | -8/Materials | Loaded intel: 1 garrison access location 3858 | -8/Materials | Led the pair of lost Derelicts to an unsafe place 4143 | -8/Materials | Lost 3 parts (1n1u1w) 4150 | -8/Materials | Identified Exp. Sensor Array 4164 | -8/Materials | Discovered new exit (range 15) 4182 | -8/Materials | Identified exit to Factory 4582 | -8/Materials | Entered Factory 4582 | -7/Factory | Evolved 2 slots: Utility x2 4885 | -7/Factory | Build established: Hauler-Skirmisher 5324 | -7/Factory | Discovered new exit (range 15) 5595 | -7/Factory | Lost 3 parts (1p1u1w) 5632 | -7/Factory | Build established: Hauler-Mutant 5726 | -7/Factory | Identified exit to Lower Caves 5780 | -7/Factory | Fabricated Point Defense Array (x2) 5800 | -7/Factory | Entered Lower Caves 6078 | -7/Lower Caves | Identified exit to Lower Caves 6738 | -7/Lower Caves | Build established: Hauler-Skirmisher 7497 | -7/Lower Caves | Entered another Lower Caves area 7499 | -7/Lower Caves | Attracted the attention of an 0b10 checkpoint 7731 | -7/Lower Caves | Learned location of 1 exit from Proximity Caves 7782 | -7/Lower Caves | Discovered new exit (range 20) 7810 | -7/Lower Caves | Encountered a Warlord checkpoint 7822 | -7/Lower Caves | Identified exit to Data Miner 7824 | -7/Lower Caves | Entered Data Miner 7824 | -7/Data Miner | Discovered new exit (range 6) 7951 | -7/Data Miner | Met Data Miner 8539 | -7/Data Miner | Learned location of Section 7 (-2) 8539 | -7/Data Miner | Acquired the access code to Warlord's prototype stash 8570 | -7/Data Miner | Received God Mode back door access code from Data Miner 8816 | -7/Data Miner | Identified exit to Proximity Caves 8821 | -7/Data Miner | Entered Proximity Caves 8822 | -6/Proximity Caves | Identified exit to Factory 8854 | -6/Proximity Caves | Escorted by Enhanced Grunt 8986 | -6/Proximity Caves | Attracted the attention of an 0b10 checkpoint 9051 | -6/Proximity Caves | Lost 3 parts (2u1w) 9417 | -6/Proximity Caves | Learned Factory stockpile data 9467 | -6/Proximity Caves | Learned location of 1 exit from Proximity Caves 9553 | -6/Proximity Caves | Entered Factory 9553 | -6/Factory | Accompanied by 1 ally 9553 | -6/Factory | Evolved 2 slots: Propulsion x1, Weapon x1 9557 | -6/Factory | Discovered new exit (range 12) 9587 | -6/Factory | Identified exit to Lower Caves 9592 | -6/Factory | Entered Lower Caves 9592 | -6/Lower Caves | Accompanied by 1 ally 9607 | -6/Lower Caves | Ambushed by wild Derelicts 9723 | -6/Lower Caves | Build established: Scavenger-Skirmisher 10299 | -6/Lower Caves | Build established: Scavenger-Mutant 10537 | -6/Lower Caves | Discovered new exit (range 12) 10557 | -6/Lower Caves | Identified exit to Lower Caves 10559 | -6/Lower Caves | Entered another Lower Caves area 10779 | -6/Lower Caves | Lost 5 parts (2n3w) 10983 | -6/Lower Caves | Encountered a Warlord checkpoint 11034 | -6/Lower Caves | Build established: Hauler-Skirmisher 11307 | -6/Lower Caves | Lost 3 parts (1p2w) 11551 | -6/Lower Caves | Build established: Hauler-Mutant 11615 | -6/Lower Caves | Discovered new exit (range 7) 11623 | -6/Lower Caves | Identified exit to Zion 11626 | -6/Lower Caves | Entered Zion 11704 | -6/Zion | Discovered new exit (range 15) 11726 | -6/Zion | Identified exit to Proximity Caves 12042 | -6/Zion | Given the Hacking Drone Bay 12042 | -6/Zion | Found Prototype Device 13057 | -6/Zion | Imprinted 13060 | -6/Zion | Declared Zion's savior 13326 | -6/Zion | Found CR-A16's Pointy Stick 13547 | -6/Zion | Entered Proximity Caves 13547 | -5/Proximity Caves | Accompanied by 3 allies 13548 | -5/Proximity Caves | Identified exit to Factory 13674 | -5/Proximity Caves | Spotted B-75 Beast 13709 | -5/Proximity Caves | Destroyed B-75 Beast 13743 | -5/Proximity Caves | Identified Hacking Drone Bay 14026 | -5/Proximity Caves | Build established: Hauler-Skirmisher 14217 | -5/Proximity Caves | Crushed by falling debris 14263 | -5/Proximity Caves | Crushed by falling debris 14264 | -5/Proximity Caves | System corruption reached 10% 14296 | -5/Proximity Caves | Crushed by falling debris 14313 | -5/Proximity Caves | Entered Factory 14313 | -5/Factory | Evolved 2 slots: Utility x2 14314 | -5/Factory | Identified exit to Upper Caves 14413 | -5/Factory | Zion Light squad teleported in 14510 | -5/Factory | Sucked down chute 14510 | -5/Factory | Entered Waste 14525 | -5/Waste | EMP discharged 14550 | -5/Waste | 3 allies followed down the chute 14577 | -5/Waste | Spotted C-40 Crusher 14582 | -5/Waste | Allies destroyed C-40 Crusher 14599 | -5/Waste | Spotted C-40 Crusher 14602 | -5/Waste | Allies destroyed C-40 Crusher 14620 | -5/Waste | Found Damper Plating 14625 | -5/Waste | EMP discharged 14625 | -5/Waste | System corruption reached 10% 14633 | -5/Waste | Spotted C-40 Crusher 14652 | -5/Waste | Allies destroyed C-40 Crusher 14670 | -5/Waste | Met Warlord forces unprepared to attack 14725 | -5/Waste | EMP discharged 14809 | -5/Waste | Spotted C-40 Crusher 14811 | -5/Waste | Allies destroyed C-40 Crusher 14825 | -5/Waste | EMP discharged 14853 | -5/Waste | Identified exit to Factory 14898 | -5/Waste | Entered Factory 14898 | -5/Factory | Accompanied by 19 allies 14979 | -5/Factory | Incoming investigation squad redirected 15164 | -5/Factory | Zion hero teleported in (1C-UTU) 15538 | -5/Factory | Entered Upper Caves 15538 | -5/Upper Caves | Accompanied by 17 allies (1C-UTU) 15622 | -5/Upper Caves | Attracted the attention of an 0b10 checkpoint 15955 | -5/Upper Caves | Found Imp. Powered Armor 16084 | -5/Upper Caves | Spotted B-75 Beast 16096 | -5/Upper Caves | Allies destroyed B-75 Beast 16274 | -5/Upper Caves | Discovered new exit (range 5) 16306 | -5/Upper Caves | Entered another Upper Caves area 16306 | -5/Upper Caves | Accompanied by 13 allies (1C-UTU) 16535 | -5/Upper Caves | Attracted the attention of an 0b10 checkpoint 16719 | -5/Upper Caves | Attracted the attention of an 0b10 outpost 16826 | -5/Upper Caves | Discovered new exit (range 15) 16859 | -5/Upper Caves | Entered Warlord 16859 | -5/Warlord | Accompanied by 5 allies (1C-UTU) 16972 | -5/Warlord | System corruption cleaned by Quarantine Array 17059 | -5/Warlord | Build established: Hauler-Mutant 17077 | -5/Warlord | Found Prototype Device 17077 | -5/Warlord | Identified Minesniffer Drone Bay 17228 | -5/Warlord | Found Prototype Energy Gun 17379 | -5/Warlord | Found Signal Generator 17382 | -5/Warlord | Found Signal Generator 17472 | -5/Warlord | Opened side exit 17517 | -5/Warlord | Build established: Hauler-Gunner 17836 | -5/Warlord | Warlord's base attacked by MAIN.C 17919 | -5/Warlord | Found Prototype Launcher 17919 | -5/Warlord | Identified Vortex Catalyst Activator 17923 | -5/Warlord | Found Prototype Energy Gun 17923 | -5/Warlord | Identified Vortex Rail 17927 | -5/Warlord | Found Vortex Rail 17929 | -5/Warlord | Found Prototype Energy Cannon 17929 | -5/Warlord | Identified Vortex Driver 17933 | -5/Warlord | Found Vortex Driver 18186 | -5/Warlord | Warlord forces counterattacked 18211 | -5/Warlord | Build established: Hauler-Tank 18415 | -5/Warlord | Rebuked by Warlord 18437 | -5/Warlord | Opened Warlord's prototype stash 18461 | -5/Warlord | Found Prototype Processor 18464 | -5/Warlord | Found Prototype Device 18472 | -5/Warlord | Found Prototype Hackware 18478 | -5/Warlord | Found Prototype Reactor 18482 | -5/Warlord | Found Exp. Targeting Computer 18650 | -5/Warlord | Spotted Executioner 18657 | -5/Warlord | Destroyed Executioner 18662 | -5/Warlord | Spotted Executioner 18672 | -5/Warlord | Destroyed Executioner 18724 | -5/Warlord | Spotted Striker 18724 | -5/Warlord | Spotted Executioner 18725 | -5/Warlord | Destroyed 7 combat bots 18728 | -5/Warlord | Destroyed Striker 18780 | -5/Warlord | Crushed by falling debris 18795 | -5/Warlord | Destroyed Executioner 18809 | -5/Warlord | Core integrity fell below 50% 18829 | -5/Warlord | Lost 10 parts (1p4n3u2w) 18833 | -5/Warlord | Spotted Executioner 18852 | -5/Warlord | Destroyed 7 combat bots 18865 | -5/Warlord | Destroyed Executioner 18880 | -5/Warlord | Found Prototype Ballistic Cannon 18887 | -5/Warlord | Lost 3 parts (1p1u1w) 18903 | -5/Warlord | Found Prototype Ballistic Cannon 18954 | -5/Warlord | Spotted Executioner 18955 | -5/Warlord | Identified Hvy. Autocannon (x2) 18970 | -5/Warlord | Destroyed Executioner 19010 | -5/Warlord | Spotted Striker 19012 | -5/Warlord | Spotted Striker 19023 | -5/Warlord | Destroyed 7 combat bots 19071 | -5/Warlord | Core integrity fell below 20% 19080 | -5/Warlord | Spotted Executioner 19083 | -5/Warlord | Destroyed by Striker with Plasma Lance Last Messages --------------- 19051_ Imp. Heavy Machine Gun destroyed. 19054_ G-50 Soldier misfires. 19056_ Critical hit. 19056_ Broken Spk. Medium Treads destroyed. 19057_ Slammed into B-74 Champion. 19060_ Identified Reflective Plating. 19061_ Slammed into Striker. 19061_ Hcp. Storage Unit destroyed. 19061_ Slug penetrates 7V-QA7(d). 19061_ 7V-QA7(d) suffers critical hit. 19063_ The unstable cave ceiling collapses. 19063_ G-50 Soldier misfires. 19064_ G-50 Soldier IFF system glitched. 19067_ Arm. Medium Treads destroyed. 19067_ System corrupted by crushing effect (+4). 19072_ The unstable cave ceiling collapses. 19072_ Reflective Plating destroyed. 19073_ Hvy. Autocannon destroyed. 19080_ Lrg. Storage Unit destroyed. 19082_ G-50 Soldier IFF system glitched. Map ----- +----------------------------------------------------+ | ## """ + ##????????????????????? | | ## # #????????????????????? | | ######### ##????????????????????? | | #############???????# #?????????????????????? | | ???#""#####""######?# #???"?????????????????? | | ???# ""## #?##""#???????????????? | | ???" + ## #""#???????????????? | | ???# """" " ##""#???????????????? | | ???" " "" """""""""#" "???????????? | | ???" ! ! " "" ###########? | | ???# % * =!"[= """"""""#? | | ???#####"""""" d [%=!%"%* != """"""#? | | ???????# [ ]!!%%!%%% !## | | ???????##### == =%% %%%%%%= ! !%+ | | ???????# ! ! !%% =%%[!%% = % *+ | | ?????# =!%%%%!= % ## | | ########"" = = d !%%% %%% ["""""""#? | | % =%[ %%" =% """"""""#? | | = =% != i # "" "###########? | | ! # ####"#""######??????????? | | # E #?#"""#???????????????? | | ##""###""""###"#### #??# "#???????????????? | | ##????#####?####???## & bi #???""????????????????# | | #?????????? ? # g #?????????????????????# | | #????????? """ """ # gbK #?????????????????????# | | #???????? """ """ # K@!#?????????????????????# | | #???????# """ """ i [ #?????????????????????# | | #???????# """ """ # #????????????????????## | | #???????# """ """ # ######??????????????## | | ????????# # # #??????????????# | | ????????#########+### + /#??????????##### | | ?????????# # # #?????????## # # | | ?????????# # # #?????????# | | ?????????# + ######?????????# | | ?????????# # #######+#??????????????# ## | | ?????????# # %## #??????????????###### | | ?????????# + ## #??????????????????# | | ????###??# # ## #??????????????????# # | | ??""" #??# # + #??????????????????# # | | ??"!" #??# # ## #??????????????????# # | | ?#" " #??# # ## #??????????????????# # | | ?# #??# # ## #??????????????????# # | | ?# #??# # ## #??????????????????# # | | ### ###??#####+# ## #?????###??????????# # | | # #+########## ######+########X############ # | | # | | ^ # | | ################################################## | | ?????????????????????????????????????????????????? | | ?????????????????????????????????????????????????? | +----------------------------------------------------+ Best States ------------- Heat Dissipation 40 Energy Generation 21 Energy Capacity 925 Matter Stores 300 Matter Capacity 300 Sight Range 16 Robot Scan Range 30 Terrain Scan Range 20 Terrain Scan Density 160 Armor Coverage 1000 Resistance: KI 40 Resistance: TH 30 Resistance: EX 20 Resistance: EM 20 Resistance: I 20 Resistance: S 20 Resistance: P 20 Power Shielding 33 Evasion (%) 40 Recoil Reduction 4 Offensive Hacking 32 Item Schematics ----------------- Combat Drone Bay | -7/Data Miner | Free Lgt. Regenerative Plating | -7/Data Miner | Free Exp. Flexi-carbon Leg | -7/Data Miner | Free Exp. Cesium-ion Thruster | -7/Data Miner | Free Exp. Terrain Scanner | -7/Data Miner | Free Exp. Targeting Computer | -7/Data Miner | Free Tactical Coordination Suite | -7/Data Miner | Free Exp. Transmission Jammer | -7/Data Miner | Free Mni. Smartbomb Launcher | -7/Data Miner | Free Ripper | -6/Zion | Free Flamer | -6/Zion | Free Bore Cannon | -6/Zion | Free Barrage Gun | -6/Zion | Free Riot Gun | -6/Zion | Free Beamcaster | -6/Zion | Free Robot Schematics ------------------ I-36 Angel | -7/Data Miner | Free P-70 Sage | -7/Data Miner | Free H-66 Slayer | -7/Data Miner | Free G-67 Veteran | -7/Data Miner | Free G-50 Soldier | -7/Data Miner | Free S-27 Virus | -7/Data Miner | Free Fabricated ------------ Point Defense Array | x2 | -7/Factory | Preloaded Alien Tech Used ----------------- None Achievements -------------- Heroic Deeds Challenges ------------ None Game ------ Seed SigixMassBlade Manual? 0 Play Time 02:24:09 Cumulative 749.4 hours Start 2020.12.10 @ 12:49:23 End 2020.12.10 @ 15:33:35 Sessions 1 Manual Loads 0 Difficulty Adventurer Special Mode None Game No. 139 Rogue 1 Adventurer 138 Explorer 0 Win Type - Total 3 Types 3/0/0/0/0/0/0/0/0 Lore% 69 Gallery% 79 Achievement% 59 Wizard Run 0 Options --------- ASCII 0 Keyboard 0 Movement Mouse Keybinds 0 Fullscreen 0 Font 12/Smallcaps Map View 83x54 Tactical HUD 1 Map Filters NONE Filters NONE Steam 1 RUN: ae53e54a-b83d-475f-86f7-8dfca2dd60b0